Workbook

Sheet Sheet1
A1: Time Stamp | B1: T1 | C1: T2 | D1: Pr | G1: Date | H1: T1 | I1: T2
A2: 2011.12.15.00.00.33 | B2: 294.6 | C2: 294.4 | D2: 0.43 | G2: 2011-12-15 | H2: =AVERAGE(B2:B101) -> 294.504 | I2: =AVERAGE(C2:C101) -> 294.32
A3: 2011.12.15.00.01.09 | B3: 294.7 | C3: 294.4 | D3: 0.43 | G3: 2011-12-15T01:00:00 | H3: =AVERAGE(B102:B201) -> 294.402 | I3: =AVERAGE(C102:C201) -> 294.24
A4: 2011.12.15.00.01.45 | B4: 294.5 | C4: 294.4 | D4: 0.43 | G4: 2011-12-15T02:00:00 | H4: =AVERAGE(B202:B300) -> 294.3313131 | I4: =AVERAGE(C202:C301) -> 294.16
A5: 2011.12.15.00.02.21 | B5: 294.5 | C5: 294.3 | D5: 0.43 | G5: 2011-12-15T03:00:00 | H5: =AVERAGE(B301:B400) -> 294.248 | I5: =AVERAGE(C302:C401) -> 294.073
A6: 2011.12.15.00.02.57 | B6: 294.6 | C6: 294.4 | D6: 0.43 | G6: 2011-12-15T04:00:00 | H6: =AVERAGE(B401:B500) -> 294.196 | I6: =AVERAGE(C402:C501) -> 294.024
A7: 2011.12.15.00.03.33 | B7: 294.5 | C7: 294.4 | D7: 0.43 | G7: 2011-12-15T05:00:00 | H7: =AVERAGE(B501:B600) -> 294.139 | I7: =AVERAGE(C502:C600) -> 293.9757576
A8: 2011.12.15.00.04.09 | B8: 294.5 | C8: 294.3 | D8: 0.43 | G8: 2011-12-15T06:00:00 | H8: =AVERAGE(B601:B700) -> 294.204 | I8: =AVERAGE(C601:C700) -> 294.05
A9: 2011.12.15.00.04.45 | B9: 294.5 | C9: 294.4 | D9: 0.44 | G9: 2011-12-15T07:00:00 | H9: =AVERAGE(B701:B800) -> 294.1424242 | I9: =AVERAGE(C701:C800) -> 293.98
A10: 2011.12.15.00.05.21 | B10: 294.5 | C10: 294.3 | D10: 0.43 | G10: 2011-12-15T08:00:00 | H10: =AVERAGE(B801:B900) -> 293.998 | I10: =AVERAGE(C801:C900) -> 293.829
A11: 2011.12.15.00.05.57 | B11: 294.6 | C11: 294.4 | D11: 0.43 | G11: 2011-12-15T09:00:00 | H11: =AVERAGE(B901:B1000) -> 294.011 | I11: =AVERAGE(C901:C1000) -> 293.845
A12: 2011.12.15.00.06.33 | B12: 294.5 | C12: 294.3 | D12: 0.43 | G12: 2011-12-15T10:00:00 | H12: =AVERAGE(B1001:B1100) -> 294.0060606 | I12: =AVERAGE(C1001:C1100) -> 293.858
A13: 2011.12.15.00.07.09 | B13: 294.5 | C13: 294.4 | D13: 0.43 | G13: 2011-12-15T11:00:00 | H13: =AVERAGE(B1101:B1200) -> 293.9979798 | I13: =AVERAGE(C1101:C1200) -> 293.851
A14: 2011.12.15.00.07.45 | B14: 294.6 | C14: 294.5 | D14: 0.43 | G14: 2011-12-15T12:00:00 | H14: =AVERAGE(B1201:B1300) -> 294.115 | I14: =AVERAGE(C1201:C1300) -> 293.976
A15: 2011.12.15.00.08.21 | B15: 294.5 | C15: 294.3 | D15: 0.43 | G15: 2011-12-15T13:00:00 | H15: =AVERAGE(B1301:B1400) -> 294.272 | I15: =AVERAGE(C1301:C1400) -> 294.144
A16: 2011.12.15.00.08.57 | B16: 294.5 | C16: 294.3 | D16: 0.43 | G16: 2011-12-15T14:00:00 | H16: =AVERAGE(B1401:B1500) -> 294.415 | I16: =AVERAGE(C1401:C1500) -> 294.281
A17: 2011.12.15.00.09.33 | B17: 294.5 | C17: 294.3 | D17: 0.43 | G17: 2011-12-15T15:00:00 | H17: =AVERAGE(B1501:B1600) -> 294.554 | I17: =AVERAGE(C1501:C1600) -> 294.442
A18: 2011.12.15.00.10.09 | B18: 294.5 | C18: 294.3 | D18: 0.43 | G18: 2011-12-15T16:00:00 | H18: =AVERAGE(B1601:B1700) -> 294.595 | I18: =AVERAGE(C1601:C1700) -> 294.4777778
A19: 2011.12.15.00.10.45 | B19: 294.5 | C19: 294.3 | D19: 0.43 | G19: 2011-12-15T17:00:00 | H19: =AVERAGE(B1701:B1800) -> 294.5989899 | I19: =AVERAGE(C1701:C1800) -> 294.463
A20: 2011.12.15.00.11.21 | B20: 294.6 | C20: 294.3 | D20: 0.43 | G20: 2011-12-15T18:00:00 | H20: =AVERAGE(B1801:B1900) -> 294.55 | I20: =AVERAGE(C1801:C1900) -> 294.408
A21: 2011.12.15.00.11.57 | B21: 294.5 | C21: 294.4 | D21: 0.43 | G21: 2011-12-15T19:00:00 | H21: =AVERAGE(B1901:B2000) -> 294.52 | I21: =AVERAGE(C1901:C2000) -> 294.377
A22: 2011.12.15.00.12.33 | B22: 294.5 | C22: 294.3 | D22: 0.43 | G22: 2011-12-15T20:00:00 | H22: =AVERAGE(B2001:B2100) -> 294.46 | I22: =AVERAGE(C2001:C2100) -> 294.293
A23: 2011.12.15.00.13.09 | B23: 294.4 | C23: 294.3 | D23: 0.43 | G23: 2011-12-15T21:00:00 | H23: =AVERAGE(B2101:B2200) -> 294.511 | I23: =AVERAGE(C2101:C2200) -> 294.354
A24: 2011.12.15.00.13.45 | B24: 294.5 | C24: 294.4 | D24: 0.43 | G24: 2011-12-15T22:00:00 | H24: =AVERAGE(B2201:B2300) -> 294.48 | I24: =AVERAGE(C2201:C2300) -> 294.314
A25: 2011.12.15.00.14.21 | B25: 294.5 | C25: 294.4 | D25: 0.43 | G25: 2011-12-15T23:00:00 | H25: =AVERAGE(B2300:B2400) -> 294.4930693 | I25: =AVERAGE(C2300:C2400) -> 294.3168317
A26: 2011.12.15.00.14.57 | B26: 294.5 | C26: 294.3 | D26: 0.43
A27: 2011.12.15.00.15.33 | B27: 294.5 | C27: 294.3 | D27: 0.43
A28: 2011.12.15.00.16.09 | B28: 294.5 | C28: 294.4 | D28: 0.43
A29: 2011.12.15.00.16.45 | B29: 294.6 | C29: 294.3 | D29: 0.43
A30: 2011.12.15.00.17.21 | B30: 294.5 | C30: 294.4 | D30: 0.43
A31: 2011.12.15.00.17.57 | B31: 294.6 | C31: 294.4 | D31: 0.43
A32: 2011.12.15.00.18.33 | B32: 294.5 | C32: 294.3 | D32: 0.43
A33: 2011.12.15.00.19.09 | B33: 294.5 | C33: 294.3 | D33: 0.43
A34: 2011.12.15.00.19.45 | B34: 294.5 | C34: 294.3 | D34: 0.43
A35: 2011.12.15.00.20.21 | B35: 294.5 | C35: 294.3 | D35: 0.43
A36: 2011.12.15.00.20.57 | B36: 294.5 | C36: 294.3 | D36: 0.43
A37: 2011.12.15.00.21.33 | B37: 294.5 | C37: 294.3 | D37: 0.43
A38: 2011.12.15.00.22.09 | B38: 294.5 | C38: 294.3 | D38: 0.43
A39: 2011.12.15.00.22.45 | B39: 294.5 | C39: 294.3 | D39: 0.43
A40: 2011.12.15.00.23.21 | B40: 294.5 | C40: 294.4 | D40: 0.43
A41: 2011.12.15.00.23.57 | B41: 294.5 | C41: 294.4 | D41: 0.43
A42: 2011.12.15.00.24.33 | B42: 294.5 | C42: 294.3 | D42: 0.43
A43: 2011.12.15.00.25.09 | B43: 294.6 | C43: 294.4 | D43: 0.43
A44: 2011.12.15.00.25.45 | B44: 294.5 | C44: 294.2 | D44: 0.43
A45: 2011.12.15.00.26.22 | B45: 294.5 | C45: 294.3 | D45: 0.43
A46: 2011.12.15.00.26.58 | B46: 294.5 | C46: 294.3 | D46: 0.43
A47: 2011.12.15.00.27.34 | B47: 294.5 | C47: 294.3 | D47: 0.43
A48: 2011.12.15.00.28.10 | B48: 294.6 | C48: 294.3 | D48: 0.43
A49: 2011.12.15.00.28.46 | B49: 294.5 | C49: 294.4 | D49: 0.43
A50: 2011.12.15.00.29.22 | B50: 294.5 | C50: 294.3 | D50: 0.43
A51: 2011.12.15.00.29.58 | B51: 294.5 | C51: 294.3 | D51: 0.43
A52: 2011.12.15.00.30.34 | B52: 294.5 | C52: 294.3 | D52: 0.43
A53: 2011.12.15.00.31.10 | B53: 294.5 | C53: 294.4 | D53: 0.43
A54: 2011.12.15.00.31.46 | B54: 294.5 | C54: 294.4 | D54: 0.43
A55: 2011.12.15.00.32.22 | B55: 294.5 | C55: 294.2 | D55: 0.43
A56: 2011.12.15.00.32.58 | B56: 294.5 | C56: 294.3 | D56: 0.43
A57: 2011.12.15.00.33.34 | B57: 294.5 | C57: 294.3 | D57: 0.43
A58: 2011.12.15.00.34.10 | B58: 294.5 | C58: 294.3 | D58: 0.43
A59: 2011.12.15.00.34.46 | B59: 294.6 | C59: 294.3 | D59: 0.43
A60: 2011.12.15.00.35.22 | B60: 294.5 | C60: 294.3 | D60: 0.43
A61: 2011.12.15.00.35.58 | B61: 294.5 | C61: 294.3 | D61: 0.43
A62: 2011.12.15.00.36.34 | B62: 294.5 | C62: 294.3 | D62: 0.43
A63: 2011.12.15.00.37.10 | B63: 294.5 | C63: 294.4 | D63: 0.43
A64: 2011.12.15.00.37.46 | B64: 294.5 | C64: 294.3 | D64: 0.43
A65: 2011.12.15.00.38.22 | B65: 294.5 | C65: 294.3 | D65: 0.43
A66: 2011.12.15.00.38.58 | B66: 294.5 | C66: 294.2 | D66: 0.43
A67: 2011.12.15.00.39.34 | B67: 294.5 | C67: 294.3 | D67: 0.43
A68: 2011.12.15.00.40.10 | B68: 294.5 | C68: 294.4 | D68: 0.43
A69: 2011.12.15.00.40.46 | B69: 294.5 | C69: 294.4 | D69: 0.43
A70: 2011.12.15.00.41.22 | B70: 294.6 | C70: 294.3 | D70: 0.43
A71: 2011.12.15.00.41.58 | B71: 294.5 | C71: 294.3 | D71: 0.43
A72: 2011.12.15.00.42.34 | B72: 294.5 | C72: 294.2 | D72: 0.43
A73: 2011.12.15.00.43.10 | B73: 294.5 | C73: 294.3 | D73: 0.43
A74: 2011.12.15.00.43.46 | B74: 294.5 | C74: 294.3 | D74: 0.43
A75: 2011.12.15.00.44.22 | B75: 294.5 | C75: 294.3 | D75: 0.43
A76: 2011.12.15.00.44.58 | B76: 294.5 | C76: 294.3 | D76: 0.43
A77: 2011.12.15.00.45.34 | B77: 294.5 | C77: 294.3 | D77: 0.43
A78: 2011.12.15.00.46.10 | B78: 294.5 | C78: 294.4 | D78: 0.43
A79: 2011.12.15.00.46.46 | B79: 294.4 | C79: 294.3 | D79: 0.43
A80: 2011.12.15.00.47.22 | B80: 294.4 | C80: 294.2 | D80: 0.43
A81: 2011.12.15.00.47.58 | B81: 294.4 | C81: 294.3 | D81: 0.43
A82: 2011.12.15.00.48.34 | B82: 294.4 | C82: 294.3 | D82: 0.43
A83: 2011.12.15.00.49.10 | B83: 294.5 | C83: 294.3 | D83: 0.43
A84: 2011.12.15.00.49.46 | B84: 294.5 | C84: 294.3 | D84: 0.43
A85: 2011.12.15.00.50.22 | B85: 294.5 | C85: 294.3 | D85: 0.43
A86: 2011.12.15.00.50.58 | B86: 294.4 | C86: 294.3 | D86: 0.43
A87: 2011.12.15.00.51.34 | B87: 294.6 | C87: 294.4 | D87: 0.43
A88: 2011.12.15.00.52.10 | B88: 294.4 | C88: 294.3 | D88: 0.43
A89: 2011.12.15.00.52.46 | B89: 294.5 | C89: 294.2 | D89: 0.43
A90: 2011.12.15.00.53.22 | B90: 294.4 | C90: 294.3 | D90: 0.43
A91: 2011.12.15.00.53.58 | B91: 294.5 | C91: 294.3 | D91: 0.43
A92: 2011.12.15.00.54.34 | B92: 294.5 | C92: 294.2 | D92: 0.43
A93: 2011.12.15.00.55.10 | B93: 294.4 | C93: 294.3 | D93: 0.43
A94: 2011.12.15.00.55.46 | B94: 294.4 | C94: 294.3 | D94: 0.43
A95: 2011.12.15.00.56.22 | B95: 294.5 | C95: 294.3 | D95: 0.43
A96: 2011.12.15.00.56.58 | B96: 294.5 | C96: 294.3 | D96: 0.43
A97: 2011.12.15.00.57.34 | B97: 294.4 | C97: 294.3 | D97: 0.43
A98: 2011.12.15.00.58.10 | B98: 294.6 | C98: 294.3 | D98: 0.43
A99: 2011.12.15.00.58.46 | B99: 294.5 | C99: 294.3 | D99: 0.43
A100: 2011.12.15.00.59.22 | B100: 294.5 | C100: 294.3 | D100: 0.43
A101: 2011.12.15.00.59.58 | B101: 294.5 | C101: 294.3 | D101: 0.43
A102: 2011.12.15.01.00.34 | B102: 294.4 | C102: 294.3 | D102: 0.43
A103: 2011.12.15.01.01.10 | B103: 294.4 | C103: 294.3 | D103: 0.43
A104: 2011.12.15.01.01.46 | B104: 294.6 | C104: 294.3 | D104: 0.43
A105: 2011.12.15.01.02.22 | B105: 294.5 | C105: 294.3 | D105: 0.43
A106: 2011.12.15.01.02.58 | B106: 294.5 | C106: 294.3 | D106: 0.43
A107: 2011.12.15.01.03.34 | B107: 294.5 | C107: 294.3 | D107: 0.43
A108: 2011.12.15.01.04.10 | B108: 294.4 | C108: 294.3 | D108: 0.43
A109: 2011.12.15.01.04.46 | B109: 294.4 | C109: 294.3 | D109: 0.43
A110: 2011.12.15.01.05.22 | B110: 294.5 | C110: 294.2 | D110: 0.43
A111: 2011.12.15.01.05.58 | B111: 294.4 | C111: 294.2 | D111: 0.43
A112: 2011.12.15.01.06.34 | B112: 294.5 | C112: 294.3 | D112: 0.43
A113: 2011.12.15.01.07.10 | B113: 294.4 | C113: 294.3 | D113: 0.43
A114: 2011.12.15.01.07.46 | B114: 294.4 | C114: 294.3 | D114: 0.43
A115: 2011.12.15.01.08.22 | B115: 294.5 | C115: 294.3 | D115: 0.43
A116: 2011.12.15.01.08.58 | B116: 294.5 | C116: 294.2 | D116: 0.43
A117: 2011.12.15.01.09.34 | B117: 294.4 | C117: 294.3 | D117: 0.43
A118: 2011.12.15.01.10.10 | B118: 294.4 | C118: 294.3 | D118: 0.43
A119: 2011.12.15.01.10.46 | B119: 294.4 | C119: 294.3 | D119: 0.43
A120: 2011.12.15.01.11.22 | B120: 294.4 | C120: 294.3 | D120: 0.43
A121: 2011.12.15.01.11.58 | B121: 294.4 | C121: 294.3 | D121: 0.43
A122: 2011.12.15.01.12.34 | B122: 294.4 | C122: 294.2 | D122: 0.43
A123: 2011.12.15.01.13.10 | B123: 294.4 | C123: 294.3 | D123: 0.43
A124: 2011.12.15.01.13.46 | B124: 294.4 | C124: 294.3 | D124: 0.42
A125: 2011.12.15.01.14.22 | B125: 294.4 | C125: 294.3 | D125: 0.43
A126: 2011.12.15.01.14.58 | B126: 294.5 | C126: 294.2 | D126: 0.43
A127: 2011.12.15.01.15.35 | B127: 294.4 | C127: 294.3 | D127: 0.43
A128: 2011.12.15.01.16.11 | B128: 294.4 | C128: 294.2 | D128: 0.43
A129: 2011.12.15.01.16.47 | B129: 294.3 | C129: 294.3 | D129: 0.43
A130: 2011.12.15.01.17.23 | B130: 294.5 | C130: 294.2 | D130: 0.43
A131: 2011.12.15.01.17.59 | B131: 294.4 | C131: 294.2 | D131: 0.43
A132: 2011.12.15.01.18.35 | B132: 294.4 | C132: 294.2 | D132: 0.43
A133: 2011.12.15.01.19.11 | B133: 294.3 | C133: 294.3 | D133: 0.43
A134: 2011.12.15.01.19.47 | B134: 294.4 | C134: 294.3 | D134: 0.43
A135: 2011.12.15.01.20.23 | B135: 294.4 | C135: 294.3 | D135: 0.43
A136: 2011.12.15.01.20.59 | B136: 294.4 | C136: 294.3 | D136: 0.43
A137: 2011.12.15.01.21.35 | B137: 294.5 | C137: 294.3 | D137: 0.43
A138: 2011.12.15.01.22.11 | B138: 294.4 | C138: 294.3 | D138: 0.43
A139: 2011.12.15.01.22.47 | B139: 294.4 | C139: 294.1 | D139: 0.43
A140: 2011.12.15.01.23.23 | B140: 294.3 | C140: 294.2 | D140: 0.43
A141: 2011.12.15.01.23.59 | B141: 294.4 | C141: 294.3 | D141: 0.43
A142: 2011.12.15.01.24.35 | B142: 294.4 | C142: 294.2 | D142: 0.43
A143: 2011.12.15.01.25.11 | B143: 294.5 | C143: 294.3 | D143: 0.43
A144: 2011.12.15.01.25.47 | B144: 294.3 | C144: 294.2 | D144: 0.43
A145: 2011.12.15.01.26.23 | B145: 294.5 | C145: 294.2 | D145: 0.43
A146: 2011.12.15.01.26.59 | B146: 294.4 | C146: 294.3 | D146: 0.43
A147: 2011.12.15.01.27.35 | B147: 294.4 | C147: 294.2 | D147: 0.43
A148: 2011.12.15.01.28.11 | B148: 294.4 | C148: 294.2 | D148: 0.43
A149: 2011.12.15.01.28.47 | B149: 294.4 | C149: 294.3 | D149: 0.43
A150: 2011.12.15.01.29.23 | B150: 294.4 | C150: 294.1 | D150: 0.43
A151: 2011.12.15.01.29.59 | B151: 294.4 | C151: 294.3 | D151: 0.43
A152: 2011.12.15.01.30.35 | B152: 294.3 | C152: 294.3 | D152: 0.43
A153: 2011.12.15.01.31.11 | B153: 294.5 | C153: 294.3 | D153: 0.43
A154: 2011.12.15.01.31.47 | B154: 294.5 | C154: 294.3 | D154: 0.43
A155: 2011.12.15.01.32.23 | B155: 294.4 | C155: 294.3 | D155: 0.43
A156: 2011.12.15.01.32.59 | B156: 294.4 | C156: 294.2 | D156: 0.43
A157: 2011.12.15.01.33.35 | B157: 294.4 | C157: 294.3 | D157: 0.43
A158: 2011.12.15.01.34.11 | B158: 294.4 | C158: 294.3 | D158: 0.43
A159: 2011.12.15.01.34.47 | B159: 294.4 | C159: 294.3 | D159: 0.43
A160: 2011.12.15.01.35.23 | B160: 294.4 | C160: 294.3 | D160: 0.43
A161: 2011.12.15.01.35.59 | B161: 294.4 | C161: 294.1 | D161: 0.43
A162: 2011.12.15.01.36.35 | B162: 294.4 | C162: 294.2 | D162: 0.43
A163: 2011.12.15.01.37.11 | B163: 294.4 | C163: 294.3 | D163: 0.43
A164: 2011.12.15.01.37.47 | B164: 294.3 | C164: 294.2 | D164: 0.43
A165: 2011.12.15.01.38.23 | B165: 294.5 | C165: 294.3 | D165: 0.43
A166: 2011.12.15.01.38.59 | B166: 294.3 | C166: 294.3 | D166: 0.43
A167: 2011.12.15.01.39.35 | B167: 294.4 | C167: 294.3 | D167: 0.43
A168: 2011.12.15.01.40.11 | B168: 294.4 | C168: 294.1 | D168: 0.43
A169: 2011.12.15.01.40.47 | B169: 294.4 | C169: 294.3 | D169: 0.43
A170: 2011.12.15.01.41.23 | B170: 294.4 | C170: 294.2 | D170: 0.43
A171: 2011.12.15.01.41.59 | B171: 294.4 | C171: 294.2 | D171: 0.43
A172: 2011.12.15.01.42.35 | B172: 294.3 | C172: 294.1 | D172: 0.43
A173: 2011.12.15.01.43.11 | B173: 294.3 | C173: 294.2 | D173: 0.43
A174: 2011.12.15.01.43.47 | B174: 294.4 | C174: 294.2 | D174: 0.43
A175: 2011.12.15.01.44.23 | B175: 294.5 | C175: 294.3 | D175: 0.43
A176: 2011.12.15.01.44.59 | B176: 294.5 | C176: 294.1 | D176: 0.43
A177: 2011.12.15.01.45.35 | B177: 294.4 | C177: 294.3 | D177: 0.43
A178: 2011.12.15.01.46.11 | B178: 294.4 | C178: 294.2 | D178: 0.43
A179: 2011.12.15.01.46.47 | B179: 294.4 | C179: 294.3 | D179: 0.43
A180: 2011.12.15.01.47.23 | B180: 294.4 | C180: 294.2 | D180: 0.43
A181: 2011.12.15.01.47.59 | B181: 294.3 | C181: 294.2 | D181: 0.43
A182: 2011.12.15.01.48.35 | B182: 294.4 | C182: 294.3 | D182: 0.43
A183: 2011.12.15.01.49.11 | B183: 294.3 | C183: 294.2 | D183: 0.43
A184: 2011.12.15.01.49.47 | B184: 294.4 | C184: 294.2 | D184: 0.43
A185: 2011.12.15.01.50.23 | B185: 294.4 | C185: 294.2 | D185: 0.43
A186: 2011.12.15.01.50.59 | B186: 294.4 | C186: 294.2 | D186: 0.43
A187: 2011.12.15.01.51.35 | B187: 294.4 | C187: 294.2 | D187: 0.43
A188: 2011.12.15.01.52.11 | B188: 294.4 | C188: 294.1 | D188: 0.43
A189: 2011.12.15.01.52.47 | B189: 294.3 | C189: 294.1 | D189: 0.43
A190: 2011.12.15.01.53.23 | B190: 294.3 | C190: 294.2 | D190: 0.43
A191: 2011.12.15.01.53.59 | B191: 294.3 | C191: 294.1 | D191: 0.43
A192: 2011.12.15.01.54.35 | B192: 294.3 | C192: 294.3 | D192: 0.43
A193: 2011.12.15.01.55.11 | B193: 294.5 | C193: 294.2 | D193: 0.43
A194: 2011.12.15.01.55.47 | B194: 294.3 | C194: 294.3 | D194: 0.43
A195: 2011.12.15.01.56.23 | B195: 294.4 | C195: 294.2 | D195: 0.43
A196: 2011.12.15.01.56.59 | B196: 294.4 | C196: 294.2 | D196: 0.43
A197: 2011.12.15.01.57.35 | B197: 294.4 | C197: 294.1 | D197: 0.43
A198: 2011.12.15.01.58.11 | B198: 294.3 | C198: 294.1 | D198: 0.43
A199: 2011.12.15.01.58.47 | B199: 294.4 | C199: 294.2 | D199: 0.43
A200: 2011.12.15.01.59.23 | B200: 294.4 | C200: 294.1 | D200: 0.43
... 2200 more rows

Sheet Sheet2

Sheet Sheet3
